lending/lending_fUSD_20241025
["ID","MTS","AMOUNT","RATE_DAILY","PERIOD"]
[340788630,1729825835079,-500.0,0.00030599,2]
[340788631,1729825835088,-500.0,0.00030599,2]
[340788632,1729825835097,-500.0,0.00030599,2]
[340788633,1729825835106,-500.0,0.00030599,2]
[340788634,1729825835116,-500.0,0.00030599,2]
[340788635,1729825835126,-500.0,0.00030599,2]
[340788636,1729825835135,-500.0,0.00030599,2]
[340788637,1729825835145,-500.0,0.00030599,2]
[340788638,1729825835154,-500.0,0.00030599,2]
[340788639,1729825835163,-500.0,0.00030599,2]
[340788640,1729825835172,-500.0,0.00030599,2]
[340788641,1729825835181,-500.0,0.00030599,2]
[340788642,1729825835190,-500.0,0.00030599,2]
[340788643,1729825835199,-500.0,0.00030599,2]
[340788644,1729825835208,-500.0,0.00030599,2]
[340788645,1729825835217,-500.0,0.00030599,2]
[340788646,1729825835226,-500.0,0.00030599,2]
[340788647,1729825835235,-500.0,0.00030599,2]
[340788648,1729825835244,-500.0,0.00030599,2]
[340788649,1729825835254,-500.0,0.00030599,2]
[340788650,1729825835263,-500.0,0.00030599,2]
[340788651,1729825835272,-500.0,0.00030599,2]
[340788652,1729825835281,-500.0,0.00030599,2]
[340788653,1729825835290,-500.0,0.00030599,2]
[340788654,1729825835300,-500.0,0.00030599,2]
[340788655,1729825835309,-500.0,0.00030599,2]
[340788656,1729825835318,-500.0,0.00030599,2]
[340788657,1729825835327,-500.0,0.00030599,2]
[340788658,1729825835336,-500.0,0.00030599,2]
[340788659,1729825835345,-500.0,0.00030599,2]
[340788660,1729825835354,-500.0,0.00030599,2]
[340788661,1729825835363,-500.0,0.00030599,2]
[340788662,1729825835373,-500.0,0.00030599,2]
[340788663,1729825835382,-500.0,0.00030599,2]
[340788664,1729825835391,-500.0,0.00030599,2]
[340788665,1729825835400,-500.0,0.00030599,2]
[340788666,1729825835409,-500.0,0.00030599,2]
[340788667,1729825835421,-500.0,0.00030599,2]
[340788668,1729825835430,-500.0,0.00030599,2]
[340788669,1729825835439,-500.0,0.00030599,2]
[340788670,1729825835448,-500.0,0.00030599,2]
[340788671,1729825835458,-500.0,0.00030599,2]
[340788672,1729825835467,-500.0,0.00030599,2]
[340788673,1729825835476,-500.0,0.00030599,2]
[340788674,1729825835487,-500.0,0.00030599,2]
[340788675,1729825835496,-500.0,0.00030599,2]
[340788676,1729825835504,-500.0,0.00030599,2]
[340788677,1729825835513,-500.0,0.00030599,2]
[340788678,1729825835522,-500.0,0.00030599,2]
[340788679,1729825835532,-500.0,0.00030599,2]
[340788680,1729825835541,-500.0,0.00030599,2]
[340788681,1729825835550,-500.0,0.00030599,2]
[340788682,1729825835559,-500.0,0.00030599,2]
[340788683,1729825835569,-500.0,0.00030599,2]
[340788684,1729825835579,-500.0,0.00030599,2]
[340788685,1729825835588,-500.0,0.00030599,2]
[340788686,1729825835597,-500.0,0.00030599,2]
[340788687,1729825835606,-500.0,0.00030599,2]
[340788688,1729825835616,-500.0,0.00030599,2]
[340788689,1729825835625,-500.0,0.00030599,2]
[340788690,1729825835636,-500.0,0.00030599,2]
[340788691,1729825835645,-500.0,0.00030599,2]
[340788692,1729825835655,-500.0,0.00030599,2]
[340788693,1729825835666,-500.0,0.00030599,2]
[340788694,1729825835677,-500.0,0.00030599,2]
[340788695,1729825835688,-500.0,0.00030599,2]
[340788696,1729825835698,-500.0,0.00030599,2]
[340788697,1729825835709,-500.0,0.00030599,2]
[340788698,1729825835719,-500.0,0.00030599,2]
[340788699,1729825835728,-500.0,0.00030599,2]
[340788700,1729825835737,-500.0,0.00030599,2]
[340788701,1729825835748,-500.0,0.00030599,2]
[340788702,1729825835758,-500.0,0.00030599,2]
[340788703,1729825835768,-500.0,0.00030599,2]
[340788704,1729825835778,-500.0,0.00030599,2]
[340788705,1729825835787,-500.0,0.00030599,2]
[340788706,1729825835797,-500.0,0.00030599,2]
[340788707,1729825835806,-500.0,0.00030599,2]
[340788708,1729825835815,-500.0,0.00030599,2]
[340788709,1729825835825,-500.0,0.00030599,2]
[340788710,1729825835835,-500.0,0.00030599,2]
[340788711,1729825835844,-500.0,0.00030599,2]
[340788712,1729825835854,-500.0,0.00030599,2]
[340788713,1729825835864,-500.0,0.00030599,2]
[340788714,1729825835874,-500.0,0.00030599,2]
[340788715,1729825835884,-500.0,0.00030599,2]
[340788716,1729825835893,-500.0,0.00030599,2]
[340788717,1729825835902,-500.0,0.00030599,2]
[340788718,1729825835913,-500.0,0.00030599,2]
[340788719,1729825835922,-500.0,0.00030599,2]
[340788720,1729825835931,-500.0,0.00030599,2]
[340788721,1729825835941,-500.0,0.00030599,2]
[340788722,1729825835950,-500.0,0.00030599,2]
[340788723,1729825835959,-500.0,0.00030599,2]
[340788724,1729825835968,-500.0,0.00030599,2]
[340788725,1729825835977,-500.0,0.00030599,2]
[340788726,1729825835986,-220.6119276,0.00030599,2]
[340788727,1729825836001,-279.3880724,0.00030599,2]
[340788728,1729825836010,-500.0,0.00030599,2]
[340788729,1729825836020,-500.0,0.00030599,2]
[340788730,1729825836031,-500.0,0.00030599,2]
[340788731,1729825836040,-500.0,0.00030599,2]
[340788732,1729825836051,-500.0,0.00030599,2]
[340788733,1729825836061,-500.0,0.00030599,2]
[340788734,1729825836071,-500.0,0.00030599,2]
[340788735,1729825836082,-500.0,0.00030599,2]
[340788736,1729825836093,-500.0,0.00030599,2]
[340788737,1729825836104,-500.0,0.00030599,2]
[340788738,1729825836115,-500.0,0.00030599,2]
[340788739,1729825836125,-500.0,0.00030599,2]
[340788740,1729825836135,-500.0,0.00030599,2]
[340788741,1729825836144,-500.0,0.00030599,2]
[340788742,1729825836153,-500.0,0.00030599,2]
[340788743,1729825836164,-500.0,0.00030599,2]
[340788744,1729825836174,-500.0,0.00030599,2]
[340788745,1729825836183,-500.0,0.00030599,2]
[340788746,1729825836192,-500.0,0.00030599,2]
[340788747,1729825836203,-500.0,0.00030599,2]
[340788748,1729825836212,-500.0,0.00030599,2]
[340788749,1729825836222,-500.0,0.00030599,2]
[340788750,1729825836233,-500.0,0.00030599,2]
[340788751,1729825836243,-500.0,0.00030599,2]
[340788752,1729825836254,-500.0,0.00030599,2]
[340788753,1729825836263,-500.0,0.00030599,2]
[340788754,1729825836272,-500.0,0.00030599,2]
[340788755,1729825836281,-500.0,0.00030599,2]
[340788756,1729825836290,-500.0,0.00030599,2]
[340788757,1729825836299,-500.0,0.00030599,2]
[340788758,1729825836308,-500.0,0.00030599,2]
[340788759,1729825836318,-500.0,0.00030599,2]
[340788760,1729825836329,-500.0,0.00030599,2]
[340788761,1729825836339,-500.0,0.00030599,2]
[340788762,1729825836349,-500.0,0.00030599,2]
[340788763,1729825836359,-155.663432,0.00030599,7]
[340788764,1729825836369,-165.657346,0.00030599,7]
[340788765,1729825836378,-155.533647,0.00030599,7]
[340788766,1729825836387,-159.511521,0.00030599,7]
[340788767,1729825836396,-151.0,0.00030599,7]
[340788768,1729825836407,-554.595305,0.00030599,7]
[340788769,1729825836422,-554.595305,0.00030599,7]
[340788770,1729825836433,-151.0,0.00030599,7]
[340788771,1729825836443,-151.0,0.00030599,7]
[340788772,1729825836455,-155.320993,0.00030599,7]
[340788773,1729825836466,-151.0,0.00030599,7]
[340788774,1729825836476,-151.0,0.00030599,7]
[340788775,1729825836487,-165.036642,0.00030599,7]
[340788776,1729825836497,-151.0,0.00030599,7]
[340788777,1729825836507,-157.151797,0.00030599,7]
[340788778,1729825836516,-151.0,0.00030599,7]
[340788779,1729825836526,-153.046398,0.00030599,7]
[340788780,1729825836538,-153.046398,0.00030599,7]
[340788781,1729825836548,-1202.507414,0.00030599,7]
[340788782,1729825836557,-1202.507414,0.00030599,7]
[340788783,1729825836566,-154.731716,0.00030599,7]
[340788784,1729825836575,-500.0,0.00030599,2]
[340788785,1729825836584,-500.0,0.00030599,2]
[340788786,1729825836592,-71.59138818,0.00030599,2]
[340788787,1729825838182,-250.0,0.0001618,2]
[340788788,1729825838193,-272.772,0.00029987,2]
[340788789,1729825838203,-428.40861182,0.00030599,2]
[340788790,1729825838215,-500.0,0.00030599,2]
[340788791,1729825838346,-500.0,0.00030599,2]
[340788792,1729825838358,-500.0,0.00030599,2]
[340788793,1729825838367,-500.0,0.00030599,2]
[340788794,1729825838377,-500.0,0.00030599,2]
[340788795,1729825838386,-500.0,0.00030599,2]
[340788796,1729825838396,-500.0,0.00030599,2]
[340788797,1729825838406,-500.0,0.00030599,2]
[340788798,1729825838420,-500.0,0.00030599,2]
[340788799,1729825838431,-500.0,0.00030599,2]
[340788800,1729825838440,-500.0,0.00030599,2]
[340788801,1729825838450,-500.0,0.00030599,2]
[340788802,1729825838461,-500.0,0.00030599,2]
[340788803,1729825838470,-500.0,0.00030599,2]
[340788804,1729825838481,-220.8379776,0.00030599,2]
[340788805,1729825838503,-279.1620224,0.00030599,2]
[340788806,1729825838512,-236.90913669,0.00030599,2]
[340788811,1729825840081,-263.09086331,0.00030599,2]
[340788812,1729825840090,-289.31781281,0.00030599,2]
[340788815,1729825840102,-210.68218719,0.00030599,2]
[340788817,1729825840111,-167.7428128,0.00030599,2]
[340788819,1729825840122,-332.2571872,0.00030599,2]
[340788821,1729825840131,-330.44916196,0.00030599,2]
[340788823,1729825840142,-169.55083804,0.00030599,2]
[340788825,1729825840151,-500.0,0.00030599,2]
[340788827,1729825840161,-500.0,0.00030599,2]
[340788829,1729825840171,-500.0,0.00030599,2]
[340788831,1729825840181,-500.0,0.00030599,2]
[340788833,1729825840190,-385.61282318,0.00030599,2]
[340788840,1729825840336,-114.38717682,0.00030599,2]
[340788841,1729825840345,-500.0,0.00030599,2]
[340788842,1729825840353,-500.0,0.00030599,2]
[340788843,1729825840362,-500.0,0.00030599,2]
[340788844,1729825840371,-500.0,0.00030599,2]
[340788845,1729825840380,-422.65234636,0.00030599,2]
[340788846,1729825840391,-77.34765364,0.00030599,2]
[340788847,1729825840400,-500.0,0.00030599,2]
[340788848,1729825840411,-151.0,0.00030599,7]
[340788849,1729825840421,-165.552755,0.00030599,7]
[340788850,1729825840430,-154.078406,0.00030599,7]
[340788851,1729825840439,-151.0,0.00030599,7]
[340788852,1729825840449,-151.0,0.00030599,7]
[340788853,1729825840459,-158.504862,0.00030599,7]
[340788854,1729825840467,-155.074548,0.00030599,7]
[340788855,1729825840476,-151.0,0.00030599,7]
[340788856,1729825840486,-151.0,0.00030599,7]
[340788857,1729825840495,-179.10445911,0.00030599,2]
[340788859,1729825840507,-27.55956544,0.00030599,2]
[340788861,1729825840516,-643.69461024,0.00030599,2]
[340788863,1729825840526,-450.16,0.00030671,2]
[340788865,1729825840535,-472.34332819,0.00030769,2]
[340788867,1729825840546,-41.24667181,0.00030769,2]
[340788869,1729825840555,-3362.0,0.00030769,2]
[340788871,1729825840566,-1062.10653334,0.00030769,2]
[340788874,1729825840579,-807.664508,0.00030769,2]
[340788876,1729825840591,-42.22895866,0.00030769,2]
[340788878,1729825840600,-810.0,0.00030769,2]
[340788880,1729825840610,-132.69209454,0.0003089,10]
[340788882,1729825840623,-340.42790546,0.0003089,10]
[340788884,1729825840633,-500.0,0.000309,2]
[340788886,1729825840642,-500.0,0.000309,2]
[340788888,1729825840652,-500.0,0.000309,2]
[340788890,1729825840663,-500.0,0.000309,2]
[340788892,1729825840673,-170.88474938,0.000309,2]
[340788895,1729825840684,-329.11525062,0.000309,2]
[340788897,1729825840693,-500.0,0.000309,2]
[340788898,1729825840702,-500.0,0.000309,2]
[340788900,1729825840711,-500.0,0.000309,2]
[340788902,1729825840719,-500.0,0.000309,2]
[340788904,1729825840728,-500.0,0.000309,2]
[340788906,1729825840737,-125.07424218,0.000309,2]
[340788908,1729825840748,-374.92575782,0.000309,2]
[340788910,1729825840757,-500.0,0.000309,2]
[340788912,1729825840766,-500.0,0.000309,2]
[340788914,1729825840776,-500.0,0.000309,2]
[340788916,1729825840785,-269.23410644,0.000309,2]
[340788918,1729825840795,-230.76589356,0.000309,2]
[340788920,1729825840804,-403.69138344,0.000309,2]
[340788922,1729825840815,-96.30861656,0.000309,2]
[340788924,1729825840824,-454.19232212,0.000309,2]
[340788926,1729825840838,-45.80767788,0.000309,2]
[340788928,1729825840847,-500.0,0.000309,2]
[340788930,1729825840857,-84.45073551,0.000309,2]
[340788932,1729825840867,-415.54926449,0.000309,2]
[340788934,1729825840878,-500.0,0.000309,2]
[340788936,1729825840888,-500.0,0.000309,2]
[340788938,1729825840897,-500.0,0.000309,2]
[340788940,1729825840906,-500.0,0.000309,2]
[340788942,1729825840915,-500.0,0.000309,2]
[340788944,1729825840924,-500.0,0.000309,2]
[340788946,1729825840933,-374.42512645,0.000309,2]
[340788948,1729825840944,-125.57487355,0.000309,2]
[340788950,1729825840953,-500.0,0.000309,2]
[340788952,1729825840962,-500.0,0.000309,2]
[340788954,1729825840971,-500.0,0.000309,2]
[340788956,1729825840980,-269.51844745,0.000309,2]
[340788959,1729825841002,-230.48155255,0.000309,2]
[340788961,1729825841011,-500.0,0.000309,2]
[340788963,1729825841020,-500.0,0.000309,2]
[340788965,1729825841029,-500.0,0.000309,2]
[340788967,1729825841038,-500.0,0.000309,2]
[340788969,1729825841046,-500.0,0.000309,2]
[340788971,1729825841055,-500.0,0.000309,2]
[340788972,1729825841065,-500.0,0.000309,2]
[340788974,1729825841074,-500.0,0.000309,2]
[340788976,1729825841083,-500.0,0.000309,2]
[340788978,1729825841092,-122.42950609,0.000309,2]
[340789062,1729825843148,-1085.0,0.00018469,2]
[340789063,1729825843158,-1085.0,0.00021469,2]
[340789064,1729825843169,-150.0,0.00030573,5]
[340789065,1729825843180,-377.57049391,0.000309,2]
[340789066,1729825843190,-500.0,0.000309,2]
[340789067,1729825843200,-500.0,0.000309,2]
[340789068,1729825843209,-500.0,0.000309,2]
[340789069,1729825843218,-500.0,0.000309,2]
[340789070,1729825843228,-500.0,0.000309,2]
[340789071,1729825843238,-500.0,0.000309,2]
[340789072,1729825843248,-500.0,0.000309,2]
[340789073,1729825843257,-500.0,0.000309,2]
[340789074,1729825843267,-500.0,0.000309,2]
[340789075,1729825843277,-500.0,0.000309,2]
[340789076,1729825843286,-500.0,0.000309,2]
[340789077,1729825843296,-500.0,0.000309,2]
[340789078,1729825843306,-500.0,0.000309,2]
[340789079,1729825843315,-500.0,0.000309,2]
[340789080,1729825843325,-500.0,0.000309,2]
[340789081,1729825843335,-500.0,0.000309,2]
[340789082,1729825843345,-500.0,0.000309,2]
[340789083,1729825843354,-500.0,0.000309,2]
[340789084,1729825843364,-500.0,0.000309,2]
[340789085,1729825843373,-500.0,0.000309,2]
[340789086,1729825843383,-500.0,0.000309,2]
[340789087,1729825843394,-500.0,0.000309,2]
[340789088,1729825843404,-500.0,0.000309,2]
[340789089,1729825843416,-500.0,0.000309,2]
[340789090,1729825843425,-500.0,0.000309,2]
[340789091,1729825843435,-500.0,0.000309,2]
[340789092,1729825843446,-500.0,0.000309,2]
[340789094,1729825843455,-500.0,0.000309,2]
[340789096,1729825843465,-500.0,0.000309,2]
[340789098,1729825843474,-500.0,0.000309,2]
[340789100,1729825843484,-500.0,0.000309,2]
[340789102,1729825843495,-500.0,0.000309,2]
[340789104,1729825843504,-500.0,0.000309,2]
[340789106,1729825843515,-500.0,0.000309,2]
[340789108,1729825843526,-500.0,0.000309,2]
[340789110,1729825843536,-500.0,0.000309,2]
[340789112,1729825843545,-500.0,0.000309,2]
[340789114,1729825843555,-500.0,0.000309,2]
[340789116,1729825843564,-500.0,0.000309,2]
[340789118,1729825843574,-500.0,0.000309,2]
[340789120,1729825843584,-500.0,0.000309,2]
[340789123,1729825843596,-500.0,0.000309,2]
[340789124,1729825843606,-500.0,0.000309,2]
[340789126,1729825843616,-500.0,0.000309,2]
[340789128,1729825843627,-500.0,0.000309,2]
[340789130,1729825843637,-500.0,0.000309,2]
[340789133,1729825843647,-500.0,0.000309,2]
[340789134,1729825843657,-500.0,0.000309,2]
[340789136,1729825843667,-500.0,0.000309,2]
[340789138,1729825843676,-500.0,0.000309,2]
[340789140,1729825843686,-500.0,0.000309,2]
[340789142,1729825843695,-500.0,0.000309,2]
[340789144,1729825843705,-500.0,0.000309,2]
[340789146,1729825843715,-500.0,0.000309,2]
[340789148,1729825843724,-500.0,0.000309,2]
[340789150,1729825843734,-500.0,0.000309,2]
[340789152,1729825843744,-154.741456,0.000309,7]
[340789154,1729825843754,-151.0,0.000309,7]
[340789156,1729825843764,-151.0,0.000309,7]
[340789157,1729825843773,-151.0,0.000309,7]
[340789158,1729825843783,-151.0,0.000309,7]
[340789159,1729825843792,-153.046398,0.000309,7]
[340789160,1729825843802,-153.046398,0.000309,7]
[340789161,1729825843811,-1202.507414,0.000309,7]
[340789162,1729825843821,-1202.507414,0.000309,7]
[340789163,1729825843831,-180.916932,0.000309,7]
[340789164,1729825843840,-151.0,0.000309,7]
[340789165,1729825843849,-151.0,0.000309,7]
[340789166,1729825843862,-151.0,0.000309,7]
[340789167,1729825843873,-151.0,0.000309,7]
[340789168,1729825843883,-250.0,0.00031121,5]
[340789170,1729825843893,-159.62,0.00031507,2]
[340789172,1729825843903,-570.0,0.00031604,2]
[340789174,1729825843912,-203.64595417,0.00031604,2]
[340789175,1729825843922,-548.0,0.00031604,2]
[340789176,1729825843932,-302.52259772,0.00031668,5]
[340789177,1729825843941,-202.09644334,0.000319,3]
[340789178,1729825843951,-171.44244762,0.000319,2]
[340789179,1729825844061,-403.84728408,0.000319,4]
[340789180,1729825844071,-169.0,0.00031973,120]
[340789181,1729825844081,-392762.59409405,0.00032,30]
[340789182,1729825844094,-1000.0,0.00032,30]
[340789183,1729825844124,-500.0,0.00032,30]
[340789184,1729825846052,-1085.0,0.00024469,2]
[340789185,1729825846062,-1085.0,0.00027469,2]
[340789186,1729825846071,-1085.0,0.00030469,2]
[340789187,1729825846081,-51116.34351702,0.00032,30]
[340789188,1729825846091,-151.0,0.00032,7]
[340789189,1729825846101,-554.595305,0.00032,7]
[340789190,1729825846111,-554.595305,0.00032,7]
[340789191,1729825846120,-157.585878,0.00032,7]
[340789192,1729825846130,-214.204058,0.00032,7]
[340789193,1729825846139,-151.0,0.00032,7]
[340789194,1729825846148,-299.376756,0.00032,7]
[340789195,1729825846157,-800.0,0.00032,2]
[340789196,1729825846167,-151.0,0.00032,7]
[340789197,1729825846176,-152.894876,0.00032,7]
[340789198,1729825846186,-153.046398,0.00032,7]
[340789199,1729825846195,-153.046398,0.00032,7]
[340789200,1729825846206,-1202.507414,0.00032,7]
[340789201,1729825846215,-1202.507414,0.00032,7]
[340789202,1729825846225,-8591.19455618,0.00032,2]
[340789203,1729825846262,-272.296,0.00032,2]
[340789204,1729825846273,-1828.48077832,0.00032,2]
[340789205,1729825846474,-5373.99942597,0.00032,2]
[340789208,1729826078330,150.0,0.000135,3]
[340789210,1729826755249,224.18907093,6.94e-05,2]
[340789212,1729826913691,1586.15772784,0.00042758,30]
[340789244,1729827032331,-1827.4086,0.000139,2]
[340789245,1729827032343,-150.0,0.00013989,2]
[340789246,1729827032353,-2339.4714,0.0001399,2]
[340789247,1729827032365,-1450.0,0.0001399,2]
[340789248,1729827032376,-1421.45272278,0.0001399,2]
[340789249,1729827032495,-300.0,0.0001399,2]
[340789285,1729827038302,-3369.41822919,0.0001399,2]
[340789288,1729827038315,-285.49172499,0.0001399,2]
[340789289,1729827038326,-1172.62595996,0.0001399,2]
[340789290,1729827038337,-822.49017547,0.0001399,2]
[340789291,1729827038349,-381.33465368,0.0001399,2]
[340789292,1729827038459,-966.71268148,0.0001399,2]
[340789293,1729827038471,-13636.16168508,0.0001399,2]
[340789294,1729827038510,-1357.22542988,0.0001399,2]
[340789295,1729827038521,-2084.0327375,0.0001399,2]
[340789296,1729827038533,-3251.88530753,0.0001399,2]
[340789297,1729827038545,-2166.78342138,0.0001399,2]
[340789298,1729827038655,-538.79913189,0.0001399,2]
[340789299,1729827038667,-25720.53891318,0.0001399,2]
[340789300,1729827038678,-3524.79836481,0.0001399,2]
[340789301,1729827038689,-1179.32628687,0.0001399,2]
[340789302,1729827038701,-2306.85711748,0.0001399,2]
[340789311,1729827040306,-410.13177793,0.0001399,2]
[340789312,1729827040560,-785.32139815,0.0001399,2]
[340789313,1729827040573,-4276.48182047,0.0001399,2]
[340789314,1729827040587,-5072.37449996,0.0001399,2]
[340789315,1729827040598,-10657.5,0.0001399,2]
[340789318,1729827040615,-69050.0,0.0001399,2]
[340789320,1729827040627,-394.01411415,0.0001399,2]
[340789322,1729827040638,-65467.40933219,0.0001399,2]
[340789323,1729827040647,-450.58622717,0.00013999,2]
[340789325,1729827040656,-165.41035901,0.00013999,2]
[340789327,1729827040665,-486445.52658294,0.00014,2]
[340789329,1729827040677,-485.3980518,0.00014,2]
[340789586,1729827043657,-301.95290011,0.00014,2]
[340789588,1729827043671,-12256.52016096,0.00014,2]
[340789591,1729827043683,-3084.33455939,0.00014,2]
[340789605,1729827043819,-123568.09961507,0.00014,2]
[340789838,1729827046233,-2306.72977837,0.00014,2]
[340789857,1729827046417,-16631.06558991,0.00014,2]
[340789871,1729827046533,-235528.36346426,0.00014,2]
[340789873,1729827046544,-3676.8728,0.00014,2]
[340789971,1729827410665,150.0,0.0001,2]
[340789972,1729827410694,100.0,0.0001,2]
[340789973,1729827412900,-300.0,0.00012,2]
[340789974,1729827522649,-500.0,0.00013873,2]
[340789975,1729827522672,-300.0,0.00013899,2]
[340789976,1729827522694,-59180.8075,0.000139,2]
[340789977,1729827522719,-807.69456816,0.000139,2]
[340789978,1729827522742,-226.03,0.0001398,3]
[340789979,1729827522767,-210433.802757,0.0001399,2]
[340789980,1729827522790,-813850.66517484,0.00014,2]
[340789992,1729828232251,-151.26159841,0.00013778,2]
[340789993,1729828232261,-262.78646843,0.0001379,2]
[340789994,1729828232271,-150.0,0.00013889,2]
[340789995,1729828232280,-7710.7513,0.0001389,2]
[340789996,1729828232289,-809.6313,0.0001389,2]
[340789997,1729828232299,-980.4708,0.0001389,2]
[340789998,1729828232308,-4738.56897285,0.0001389,2]
[340789999,1729828232318,-8249.74755088,0.000139,2]
[340790000,1729828232328,-488.38061767,0.00013973,2]
[340790001,1729828232337,-297.75712148,0.00013973,2]
[340790002,1729828232347,-500.0,0.00013973,2]
[340790003,1729828232357,-503.88677674,0.00013973,2]
[340790004,1729828232366,-53702.433806,0.00014,2]
[340790005,1729828232377,-130304.81512351,0.00014,2]
[340790006,1729828232390,-290.832,0.00014,2]
[340790007,1729828232486,-0.45217278,0.00014,2]
[340790008,1729828232509,-2509.94352943,0.00014,2]
[340790009,1729828238499,-325.32941439,0.00014,2]
[340790010,1729828238707,-2946.02422335,0.00014,2]
[340790048,1729828240313,-2727.0184741,0.00014,2]
[340790049,1729828240336,-2896.58360006,0.00014,2]
[340790050,1729828240434,-1307.08501253,0.00014,2]
[340790051,1729828240443,-350.0,0.00014,2]
[340790052,1729828240453,-158.83556465,0.000141,2]
[340790053,1729828240463,-1991.89017672,0.000145,2]
[340790054,1729828240473,-5129.00218788,0.000145,2]
[340790055,1729828240483,-1834.23455162,0.000145,2]
[340790056,1729828240492,-473.1,0.00014581,2]
[340790057,1729828240501,-12285.14,0.00014581,2]
[340790058,1729828240511,-3094.22,0.00014581,2]
[340790059,1729828240520,-683.6,0.00014581,2]
[340790060,1729828240530,-299.99,0.00014581,2]
[340790061,1729828240539,-617.88,0.00014581,2]
[340790062,1729828240548,-9162.71,0.00014581,2]
[340790063,1729828240557,-150.99,0.00014581,2]
[340790064,1729828240567,-370.71,0.00014599,2]
[340790065,1729828240576,-9999.99,0.00014599,2]
[340790066,1729828240585,-3559.17,0.00014599,2]
[340790067,1729828240596,-324.46,0.00014599,2]
[340790068,1729828240605,-7883.49,0.00014599,2]
[340790069,1729828240614,-327.87,0.00014599,2]
[340790070,1729828240623,-604.05,0.00014599,2]
[340790071,1729828240632,-528.09791056,0.00014999,2]
[340790072,1729828240643,-510.24346622,0.00015,2]
[340790073,1729828240652,-394487.42805445,0.00015,2]
[340790074,1729828240662,-176.29684644,0.00015242,2]
[340790075,1729828240671,-250.0,0.00015292,2]
[340790077,1729828240680,-510.05574393,0.00015342,2]
[340790078,1729828240689,-175.96,0.00015342,2]
[340790079,1729828240699,-156.35,0.00015342,2]
[340790080,1729828240708,-164.39,0.00015342,2]
[340790081,1729828240717,-250.0,0.0001538,2]
[340790082,1729828240727,-585.38,0.00015658,2]
[340790083,1729828240738,-155.55,0.00015823,2]
[340790084,1729828240747,-400.0,0.00016,2]
[340790085,1729828240757,-23900.0,0.00016095,2]
[340790087,1729828240766,-1707.85,0.00016177,2]
[340790089,1729828240775,-4246.11,0.00016366,2]
[340790091,1729828240785,-250.0,0.00016366,2]
[340790093,1729828240794,-166.78,0.00016512,2]
[340790095,1729828240803,-486.728,0.00016512,2]
[340790097,1729828240812,-486.728,0.00016512,2]
[340790099,1729828240821,-486.728,0.00016512,2]
[340790101,1729828240831,-486.728,0.00016512,2]
[340790103,1729828240842,-486.728,0.00016512,2]
[340790105,1729828240851,-486.728,0.00016512,2]
[340790107,1729828240860,-486.728,0.00016512,2]
[340790109,1729828240868,-486.728,0.00016512,2]
[340790111,1729828240878,-486.728,0.00016512,2]